[Event "*** Titled Tuesday Blitz"]
[Site "Chess.com"]
[Date "2021.03.09"]
[Round "5"]
[White "Gulkov_Igor"]
[Black "Dyadya81"]
[Result "0-1"]
[WhiteElo "2526"]
[BlackElo "2727"]
[TimeControl "180+1"]
[EndTime "10:58:50 PST"]
[Termination "Dyadya81 won on time"]

1. Nf3 {[%clk 0:02:56.7]} 1... d5 {[%clk 0:02:57.7]} 2. d4 {[%clk 0:02:55.7]}
2... Nc6 {[%clk 0:02:57.7]} 3. Bf4 {[%clk 0:02:54.7]} 3... Bg4 {[%clk 0:02:57]}
4. e3 {[%clk 0:02:54.9]} 4... e6 {[%clk 0:02:56.8]} 5. c4 {[%clk 0:02:54.9]}
5... Bb4+ {[%clk 0:02:56.3]} 6. Nc3 {[%clk 0:02:54.5]} 6... Nf6 {[%clk
0:02:56.2]} 7. Rc1 {[%clk 0:02:48.1]} 7... O-O {[%clk 0:02:53.9]} 8. Bd3 {[%clk
0:02:43.1]} 8... dxc4 {[%clk 0:02:06.5]} 9. Bxc4 {[%clk 0:02:42.6]} 9... Nd5
{[%clk 0:02:05.5]} 10. Bg3 {[%clk 0:02:30.8]} 10... Nxc3 {[%clk 0:01:53.3]} 11.
bxc3 {[%clk 0:02:29.8]} 11... Bd6 {[%clk 0:01:50.6]} 12. O-O {[%clk 0:02:25.9]}
12... Bxg3 {[%clk 0:01:44]} 13. hxg3 {[%clk 0:02:25]} 13... e5 {[%clk
0:01:40.2]} 14. Qc2 {[%clk 0:01:57.2]} 14... Qd6 {[%clk 0:01:13.2]} 15. Bb5
{[%clk 0:01:40.3]} 15... Bxf3 {[%clk 0:01:08.1]} 16. gxf3 {[%clk 0:01:39.6]}
16... Ne7 {[%clk 0:01:03.2]} 17. Qe4 {[%clk 0:01:31.2]} 17... exd4 {[%clk
0:00:50.2]} 18. cxd4 {[%clk 0:01:28.2]} 18... c6 {[%clk 0:00:50.7]} 19. Bc4
{[%clk 0:01:27.2]} 19... Rae8 {[%clk 0:00:46.3]} 20. Qc2 {[%clk 0:01:08.6]}
20... g6 {[%clk 0:00:40.3]} 21. Kg2 {[%clk 0:01:03.8]} 21... Kg7 {[%clk
0:00:40.6]} 22. Bb3 {[%clk 0:00:54.1]} 22... Nf5 {[%clk 0:00:38.8]} 23. Qc5
{[%clk 0:00:43.9]} 23... Qb8 {[%clk 0:00:38.6]} 24. f4 {[%clk 0:00:43.5]} 24...
h5 {[%clk 0:00:26.5]} 25. Rh1 {[%clk 0:00:42.4]} 25... h4 {[%clk 0:00:13]} 26.
g4 {[%clk 0:00:17.5]} 26... Nxe3+ {[%clk 0:00:13.1]} 27. fxe3 {[%clk 0:00:17.2]}
27... Rxe3 {[%clk 0:00:14]} 28. Rcf1 {[%clk 0:00:16.7]} 28... Rg3+ {[%clk
0:00:12.7]} 29. Kh2 {[%clk 0:00:15]} 29... Re8 {[%clk 0:00:13.2]} 30. Rf2 {[%clk
0:00:12.8]} 30... Ree3 {[%clk 0:00:10.6]} 31. Rg1 {[%clk 0:00:07.3]} 31... Rh3+
{[%clk 0:00:06.8]} 32. Kg2 {[%clk 0:00:07.5]} 32... Qe8 {[%clk 0:00:05.6]} 0-1

[Event "*** Titled Tuesday Blitz"]
[Site "Chess.com"]
[Date "2021.03.09"]
[Round "5"]
[White "CroissantNeuf"]
[Black "Kale36"]
[Result "1-0"]
[WhiteElo "2507"]
[BlackElo "2316"]
[TimeControl "180+1"]
[EndTime "10:58:53 PST"]
[Termination "CroissantNeuf won by checkmate"]

1. e4 {[%clk 0:03:00.9]} 1... c6 {[%clk 0:02:59.1]} 2. d4 {[%clk 0:03:00.5]}
2... d5 {[%clk 0:02:59]} 3. e5 {[%clk 0:03:01.2]} 3... c5 {[%clk 0:02:58.8]} 4.
Nf3 {[%clk 0:03:00.7]} 4... Nc6 {[%clk 0:02:58.1]} 5. dxc5 {[%clk 0:02:59.3]}
5... Bg4 {[%clk 0:02:53.9]} 6. c3 {[%clk 0:02:57]} 6... Bxf3 {[%clk 0:02:42.8]}
7. Qxf3 {[%clk 0:02:55.1]} 7... Nxe5 {[%clk 0:02:42.8]} 8. Bb5+ {[%clk
0:02:47.9]} 8... Nc6 {[%clk 0:02:42]} 9. Bf4 {[%clk 0:02:39.3]} 9... Nf6 {[%clk
0:02:38]} 10. O-O {[%clk 0:02:37.4]} 10... e6 {[%clk 0:02:37.7]} 11. b4 {[%clk
0:02:36.5]} 11... Be7 {[%clk 0:02:33.7]} 12. Re1 {[%clk 0:02:33.9]} 12... O-O
{[%clk 0:02:33]} 13. Nd2 {[%clk 0:02:28.5]} 13... a5 {[%clk 0:02:30.2]} 14. a3
{[%clk 0:02:25.6]} 14... Rc8 {[%clk 0:02:25.9]} 15. Nb3 {[%clk 0:02:18.4]} 15...
axb4 {[%clk 0:02:11]} 16. axb4 {[%clk 0:02:17]} 16... Ne4 {[%clk 0:02:08]} 17.
Bxc6 {[%clk 0:02:07.7]} 17... bxc6 {[%clk 0:02:07.6]} 18. Ra6 {[%clk 0:01:51.3]}
18... Bf6 {[%clk 0:02:04.9]} 19. Bd2 {[%clk 0:01:34.1]} 19... e5 {[%clk
0:01:36.2]} 20. Qd3 {[%clk 0:01:25.3]} 20... Nxd2 {[%clk 0:01:23]} 21. Qxd2
{[%clk 0:01:24.9]} 21... e4 {[%clk 0:01:17.6]} 22. Nd4 {[%clk 0:01:21.3]} 22...
Qd7 {[%clk 0:01:14.9]} 23. Rea1 {[%clk 0:01:12.9]} 23... Bxd4 {[%clk 0:01:07.4]}
24. Qxd4 {[%clk 0:01:11.2]} 24... Rfe8 {[%clk 0:00:57.7]} 25. b5 {[%clk
0:00:58.2]} 25... cxb5 {[%clk 0:00:51.5]} 26. Rd6 {[%clk 0:00:58.1]} 26... Ra8
{[%clk 0:00:45.6]} 27. Rxa8 {[%clk 0:00:40.3]} 27... Rxa8 {[%clk 0:00:42.5]} 28.
h3 {[%clk 0:00:35.4]} 28... Qf5 {[%clk 0:00:30.8]} 29. Rxd5 {[%clk 0:00:25.8]}
29... Qc8 {[%clk 0:00:15.9]} 30. Rd7 {[%clk 0:00:16]} 30... h6 {[%clk
0:00:12.9]} 31. Qd5 {[%clk 0:00:15.4]} 31... Qe8 {[%clk 0:00:12]} 32. c6 {[%clk
0:00:14.3]} 32... Rc8 {[%clk 0:00:10.9]} 33. c7 {[%clk 0:00:13.3]} 33... Kh7
{[%clk 0:00:05.4]} 34. Qf5+ {[%clk 0:00:10.6]} 34... g6 {[%clk 0:00:03.4]} 35.
Rxf7+ {[%clk 0:00:08.6]} 35... Kh8 {[%clk 0:00:03.1]} 36. Qf6+ {[%clk
0:00:08.6]} 36... Kg8 {[%clk 0:00:02.3]} 37. Qg7# {[%clk 0:00:09.5]} 1-0

[Event "*** Titled Tuesday Blitz"]
[Site "Chess.com"]
[Date "2021.03.09"]
[Round "5"]
[White "noblerone"]
[Black "AttackSparrow"]
[Result "0-1"]
[WhiteElo "2390"]
[BlackElo "2533"]
[TimeControl "180+1"]
[EndTime "10:58:54 PST"]
[Termination "AttackSparrow won on time"]

1. d4 {[%clk 0:03:00.9]} 1... Nf6 {[%clk 0:02:59.6]} 2. Nf3 {[%clk 0:03:01.1]}
2... g6 {[%clk 0:02:58.4]} 3. Bg5 {[%clk 0:03:01]} 3... Bg7 {[%clk 0:02:58.2]}
4. Nbd2 {[%clk 0:03:00.5]} 4... d5 {[%clk 0:02:58]} 5. e3 {[%clk 0:02:59.7]}
5... a6 {[%clk 0:02:55.8]} 6. a4 {[%clk 0:02:57.6]} 6... c5 {[%clk 0:02:53.2]}
7. c3 {[%clk 0:02:57.2]} 7... Nc6 {[%clk 0:02:52.9]} 8. Be2 {[%clk 0:02:56.3]}
8... h6 {[%clk 0:02:52]} 9. Bh4 {[%clk 0:02:56.1]} 9... g5 {[%clk 0:02:52.5]}
10. Bg3 {[%clk 0:02:56.2]} 10... Bf5 {[%clk 0:02:51]} 11. Ne5 {[%clk 0:02:54.8]}
11... Nxe5 {[%clk 0:02:47.7]} 12. Bxe5 {[%clk 0:02:55.7]} 12... Qd7 {[%clk
0:02:40.3]} 13. dxc5 {[%clk 0:02:42.8]} 13... Rc8 {[%clk 0:02:35]} 14. b4 {[%clk
0:02:16]} 14... O-O {[%clk 0:02:29.9]} 15. Rc1 {[%clk 0:02:13.4]} 15... Rfe8
{[%clk 0:02:11.8]} 16. O-O {[%clk 0:02:08.8]} 16... Qe6 {[%clk 0:02:09.1]} 17.
Bd4 {[%clk 0:01:57.9]} 17... Qd7 {[%clk 0:02:01.5]} 18. Nf3 {[%clk 0:01:48.5]}
18... Ne4 {[%clk 0:01:44.9]} 19. Bxg7 {[%clk 0:01:46.4]} 19... Kxg7 {[%clk
0:01:45.8]} 20. Nd4 {[%clk 0:01:27.6]} 20... Bg6 {[%clk 0:01:43.2]} 21. c6
{[%clk 0:01:27.6]} 21... bxc6 {[%clk 0:01:38.6]} 22. Bxa6 {[%clk 0:01:28.1]}
22... Rb8 {[%clk 0:01:32.2]} 23. b5 {[%clk 0:01:25.2]} 23... c5 {[%clk
0:01:26.7]} 24. Nf3 {[%clk 0:01:25.3]} 24... f6 {[%clk 0:01:21.6]} 25. a5 {[%clk
0:01:03.5]} 25... Red8 {[%clk 0:01:17.1]} 26. Qe2 {[%clk 0:00:57.7]} 26... e5
{[%clk 0:01:13.4]} 27. Rfd1 {[%clk 0:00:56.5]} 27... Qe6 {[%clk 0:01:09]} 28. b6
{[%clk 0:00:53.4]} 28... c4 {[%clk 0:01:07.5]} 29. Bb5 {[%clk 0:00:47.7]} 29...
Qc8 {[%clk 0:01:00.4]} 30. Qb2 {[%clk 0:00:40.3]} 30... Qc5 {[%clk 0:00:59.3]}
31. Ra1 {[%clk 0:00:37.8]} 31... Nd6 {[%clk 0:00:51.2]} 32. Ba4 {[%clk
0:00:23.3]} 32... Qxa5 {[%clk 0:00:49.3]} 33. Bc2 {[%clk 0:00:14]} 33... Qxb6
{[%clk 0:00:48.8]} 34. Qxb6 {[%clk 0:00:14.3]} 34... Rxb6 {[%clk 0:00:49.6]} 35.
Ra7+ {[%clk 0:00:15.1]} 35... Rb7 {[%clk 0:00:47.9]} 36. Rxb7+ {[%clk
0:00:14.9]} 36... Nxb7 {[%clk 0:00:48.8]} 37. Bxg6 {[%clk 0:00:15.6]} 37... Kxg6
{[%clk 0:00:49.7]} 38. Kf1 {[%clk 0:00:15.4]} 38... Nc5 {[%clk 0:00:49.4]} 39.
Ra1 {[%clk 0:00:14.9]} 39... Rb8 {[%clk 0:00:48.2]} 40. Rd1 {[%clk 0:00:13.5]}
40... Nd3 {[%clk 0:00:48]} 41. Nd2 {[%clk 0:00:11.4]} 41... Rb2 {[%clk 0:00:47]}
42. g3 {[%clk 0:00:11.2]} 42... g4 {[%clk 0:00:46.7]} 43. Kg2 {[%clk 0:00:09]}
43... e4 {[%clk 0:00:46.1]} 44. Kf1 {[%clk 0:00:08.1]} 44... h5 {[%clk 0:00:46]}
45. Kg2 {[%clk 0:00:08.6]} 45... Kg5 {[%clk 0:00:46.5]} 46. Kf1 {[%clk 0:00:09]}
46... h4 {[%clk 0:00:46]} 47. Kg2 {[%clk 0:00:08]} 47... h3+ {[%clk 0:00:45.6]}
48. Kf1 {[%clk 0:00:08.1]} 48... f5 {[%clk 0:00:46.2]} 49. Kg1 {[%clk
0:00:08.1]} 49... Ne5 {[%clk 0:00:45.2]} 50. Nf1 {[%clk 0:00:04.4]} 50... Nf3+
{[%clk 0:00:45.1]} 51. Kh1 {[%clk 0:00:05]} 51... Rxf2 {[%clk 0:00:45.5]} 0-1

[Event "*** Titled Tuesday Blitz"]
[Site "Chess.com"]
[Date "2021.03.09"]
[Round "5"]
[White "SilviusTiberius"]
[Black "DanielDardha2005"]
[Result "1-0"]
[WhiteElo "2510"]
[BlackElo "2669"]
[TimeControl "180+1"]
[EndTime "10:58:56 PST"]
[Termination "SilviusTiberius won by resignation"]

1. e4 {[%clk 0:03:00.9]} 1... c5 {[%clk 0:02:57.8]} 2. Nf3 {[%clk 0:03:01]} 2...
Nc6 {[%clk 0:02:56.7]} 3. d4 {[%clk 0:03:01]} 3... cxd4 {[%clk 0:02:57.6]} 4.
Nxd4 {[%clk 0:03:00.1]} 4... Nf6 {[%clk 0:02:53.6]} 5. Nc3 {[%clk 0:02:59.4]}
5... e6 {[%clk 0:02:44.9]} 6. Nxc6 {[%clk 0:02:59]} 6... bxc6 {[%clk 0:02:42.5]}
7. e5 {[%clk 0:02:59.4]} 7... Nd5 {[%clk 0:02:40]} 8. Ne4 {[%clk 0:02:59.9]}
8... Qa5+ {[%clk 0:02:34.3]} 9. Bd2 {[%clk 0:02:56.7]} 9... Qc7 {[%clk
0:02:29.4]} 10. f4 {[%clk 0:02:56.1]} 10... f5 {[%clk 0:02:25.1]} 11. exf6
{[%clk 0:02:53]} 11... Nxf6 {[%clk 0:02:21.2]} 12. Nxf6+ {[%clk 0:02:52.5]}
12... gxf6 {[%clk 0:02:22.1]} 13. Qh5+ {[%clk 0:02:51.8]} 13... Ke7 {[%clk
0:02:19.3]} 14. O-O-O {[%clk 0:02:42.9]} 14... c5 {[%clk 0:02:08.4]} 15. Bc3
{[%clk 0:02:22.4]} 15... Qxf4+ {[%clk 0:02:04.9]} 16. Kb1 {[%clk 0:02:22.4]}
16... Bg7 {[%clk 0:01:50.8]} 17. Qxc5+ {[%clk 0:02:11.1]} 17... d6 {[%clk
0:01:50.5]} 18. Qc7+ {[%clk 0:02:08.3]} 18... Bd7 {[%clk 0:01:49.7]} 19. g3
{[%clk 0:01:42.5]} 19... Qa4 {[%clk 0:01:34.2]} 20. Qxd6+ {[%clk 0:01:39.8]}
20... Ke8 {[%clk 0:01:34.2]} 21. Bg2 {[%clk 0:01:18.9]} 21... Rd8 {[%clk
0:01:04.6]} 22. Rhe1 {[%clk 0:01:14.9]} 22... Kf7 {[%clk 0:00:56.4]} 23. Rd4
{[%clk 0:00:58.5]} 23... Qb5 {[%clk 0:00:49.8]} 24. Red1 {[%clk 0:00:53.9]}
24... Rhe8 {[%clk 0:00:35.3]} 25. Qc7 {[%clk 0:00:51.2]} 25... Kg6 {[%clk
0:00:10.9]} 26. Rxd7 {[%clk 0:00:47.8]} 26... Rxd7 {[%clk 0:00:04.1]} 27. Rxd7
{[%clk 0:00:46.3]} 27... Bh6 {[%clk 0:00:02.1]} 28. Be4+ {[%clk 0:00:26.4]}
28... f5 {[%clk 0:00:02.6]} 29. Bd3 {[%clk 0:00:26.5]} 29... Qa4 {[%clk
0:00:01.5]} 30. Rg7+ {[%clk 0:00:25.6]} 30... Bxg7 {[%clk 0:00:01.6]} 31. Qxg7+
{[%clk 0:00:26.2]} 31... Kh5 {[%clk 0:00:02.4]} 32. Be2+ {[%clk 0:00:25.4]}
32... Qg4 {[%clk 0:00:02.9]} 33. Bxg4+ {[%clk 0:00:25.2]} 33... fxg4 {[%clk
0:00:03.8]} 34. Qxh7+ {[%clk 0:00:24.3]} 34... Kg5 {[%clk 0:00:03.9]} 35. Qg7+
{[%clk 0:00:23.6]} 35... Kf5 {[%clk 0:00:03.5]} 36. Qf7+ {[%clk 0:00:23.6]}
36... Kg5 {[%clk 0:00:03.9]} 37. Qxe8 {[%clk 0:00:22.8]} 37... Kf5 {[%clk
0:00:03.5]} 38. Qh5+ {[%clk 0:00:20.3]} 38... Ke4 {[%clk 0:00:04]} 39. Qxg4+
{[%clk 0:00:20.6]} 39... Kd5 {[%clk 0:00:04.7]} 40. Qd4+ {[%clk 0:00:20.3]}
40... Kc6 {[%clk 0:00:05]} 41. h4 {[%clk 0:00:20.6]} 41... a6 {[%clk 0:00:05.9]}
42. h5 {[%clk 0:00:21]} 42... Kb5 {[%clk 0:00:06.8]} 43. h6 {[%clk 0:00:21.1]}
43... e5 {[%clk 0:00:07.7]} 44. Qd5+ {[%clk 0:00:21]} 44... Ka4 {[%clk
0:00:07.8]} 45. b3+ {[%clk 0:00:21.1]} 1-0

[Event "*** Titled Tuesday Blitz"]
[Site "Chess.com"]
[Date "2021.03.09"]
[Round "5"]
[White "MustafayevFarid2004"]
[Black "Mr_Sinigami"]
[Result "0-1"]
[WhiteElo "2437"]
[BlackElo "2601"]
[TimeControl "180+1"]
[EndTime "10:58:56 PST"]
[Termination "Mr_Sinigami won on time"]

1. d4 {[%clk 0:03:00.9]} 1... Nf6 {[%clk 0:02:59.4]} 2. c4 {[%clk 0:03:00.5]}
2... c5 {[%clk 0:02:59]} 3. d5 {[%clk 0:03:00.3]} 3... b5 {[%clk 0:02:59.2]} 4.
a4 {[%clk 0:03:00]} 4... b4 {[%clk 0:02:55.9]} 5. Nd2 {[%clk 0:02:59.5]} 5... d6
{[%clk 0:02:54.2]} 6. e4 {[%clk 0:02:59]} 6... g6 {[%clk 0:02:53.9]} 7. f4
{[%clk 0:02:59.1]} 7... Bg7 {[%clk 0:02:52]} 8. Ngf3 {[%clk 0:02:57.9]} 8... O-O
{[%clk 0:02:51.1]} 9. Bd3 {[%clk 0:02:57.7]} 9... e6 {[%clk 0:02:14.9]} 10. O-O
{[%clk 0:02:44.9]} 10... exd5 {[%clk 0:02:14.6]} 11. cxd5 {[%clk 0:02:19.2]}
11... Ba6 {[%clk 0:02:13.8]} 12. Bxa6 {[%clk 0:02:14.7]} 12... Nxa6 {[%clk
0:02:13.4]} 13. Re1 {[%clk 0:02:10.1]} 13... Re8 {[%clk 0:02:12.3]} 14. Qc2
{[%clk 0:01:58.4]} 14... b3 {[%clk 0:01:30]} 15. Qxb3 {[%clk 0:01:45.7]} 15...
Nb4 {[%clk 0:01:29.2]} 16. Qc4 {[%clk 0:01:14.9]} 16... Qe7 {[%clk 0:01:09.8]}
17. Ra3 {[%clk 0:01:11.8]} 17... Rab8 {[%clk 0:00:54.1]} 18. Rae3 {[%clk
0:00:43.2]} 18... Qd7 {[%clk 0:00:34.9]} 19. b3 {[%clk 0:00:35]} 19... Na2
{[%clk 0:00:34]} 20. Bb2 {[%clk 0:00:30.6]} 20... Ng4 {[%clk 0:00:33.6]} 21.
Bxg7 {[%clk 0:00:25.6]} 21... Nxe3 {[%clk 0:00:33.4]} 22. Rxe3 {[%clk
0:00:26.5]} 22... Kxg7 {[%clk 0:00:33.5]} 23. e5 {[%clk 0:00:26.7]} 23... dxe5
{[%clk 0:00:22.1]} 24. Nxe5 {[%clk 0:00:27.6]} 24... Qf5 {[%clk 0:00:21.7]} 25.
g4 {[%clk 0:00:19.4]} 25... Qf6 {[%clk 0:00:19]} 26. Rf3 {[%clk 0:00:16.2]}
26... Rb4 {[%clk 0:00:18]} 27. Qf1 {[%clk 0:00:14.2]} 27... Rd4 {[%clk
0:00:16.3]} 28. Ndc4 {[%clk 0:00:11.9]} 28... Nb4 {[%clk 0:00:15.3]} 29. d6
{[%clk 0:00:11.6]} 29... Nd5 {[%clk 0:00:15.2]} 30. d7 {[%clk 0:00:11.1]} 30...
Rd8 {[%clk 0:00:15.4]} 31. f5 {[%clk 0:00:10.2]} 31... g5 {[%clk 0:00:14.3]} 32.
Rd3 {[%clk 0:00:05.7]} 32... Nf4 {[%clk 0:00:11.3]} 33. Rxd4 {[%clk 0:00:05.3]}
33... cxd4 {[%clk 0:00:11.6]} 34. Qd1 {[%clk 0:00:05.7]} 34... Qe6 {[%clk
0:00:11.2]} 35. Kf1 {[%clk 0:00:03.6]} 35... Qd5 {[%clk 0:00:10.8]} 0-1

[Event "*** Titled Tuesday Blitz"]
[Site "Chess.com"]
[Date "2021.03.09"]
[Round "5"]
[White "MaevskiyNikolay"]
[Black "Chernov_Mikhail"]
[Result "0-1"]
[WhiteElo "2515"]
[BlackElo "2402"]
[TimeControl "180+1"]
[EndTime "10:58:56 PST"]
[Termination "Chernov_Mikhail won on time"]

1. e4 {[%clk 0:03:00.9]} 1... c5 {[%clk 0:02:59.2]} 2. Nf3 {[%clk 0:03:00.5]}
2... Nc6 {[%clk 0:02:59.6]} 3. c3 {[%clk 0:02:59.8]} 3... Nf6 {[%clk 0:02:59.2]}
4. e5 {[%clk 0:02:59.6]} 4... Nd5 {[%clk 0:02:59.7]} 5. d4 {[%clk 0:02:59.6]}
5... cxd4 {[%clk 0:02:59.4]} 6. cxd4 {[%clk 0:02:56.7]} 6... d6 {[%clk
0:02:59.4]} 7. Bc4 {[%clk 0:02:52.9]} 7... e6 {[%clk 0:02:57.7]} 8. O-O {[%clk
0:02:50.1]} 8... Be7 {[%clk 0:02:57.5]} 9. a3 {[%clk 0:02:49.9]} 9... O-O {[%clk
0:02:56.9]} 10. Qe2 {[%clk 0:02:49.2]} 10... dxe5 {[%clk 0:02:55]} 11. dxe5
{[%clk 0:02:48.9]} 11... Qc7 {[%clk 0:02:44.6]} 12. Rd1 {[%clk 0:02:43.3]} 12...
Rd8 {[%clk 0:02:34.1]} 13. b4 {[%clk 0:02:41.4]} 13... b6 {[%clk 0:02:24.9]} 14.
h4 {[%clk 0:02:31.3]} 14... Bb7 {[%clk 0:02:22.5]} 15. Bg5 {[%clk 0:02:30.1]}
15... Bxg5 {[%clk 0:02:07.8]} 16. Bxd5 {[%clk 0:02:30.2]} 16... Bf4 {[%clk
0:01:51.5]} 17. Bxc6 {[%clk 0:02:02.1]} 17... Qxc6 {[%clk 0:01:38]} 18. Nbd2
{[%clk 0:01:59.5]} 18... Rd7 {[%clk 0:01:16.8]} 19. Nb3 {[%clk 0:01:51.1]} 19...
Rad8 {[%clk 0:01:15.4]} 20. Rxd7 {[%clk 0:01:46.7]} 20... Qxd7 {[%clk 0:01:13]}
21. g3 {[%clk 0:01:37.2]} 21... Bh6 {[%clk 0:01:12]} 22. Nbd4 {[%clk 0:01:31.6]}
22... Qd5 {[%clk 0:01:09.5]} 23. Re1 {[%clk 0:01:16.9]} 23... Rc8 {[%clk
0:01:05.4]} 24. Rd1 {[%clk 0:01:10]} 24... g6 {[%clk 0:00:57.5]} 25. Rd3 {[%clk
0:01:06.6]} 25... Rc1+ {[%clk 0:00:54.9]} 26. Kh2 {[%clk 0:01:06.8]} 26... Bg7
{[%clk 0:00:43.8]} 27. Nf5 {[%clk 0:00:56.4]} 27... Qc4 {[%clk 0:00:26.5]} 28.
Rd8+ {[%clk 0:00:35.1]} 28... Bf8 {[%clk 0:00:26.9]} 29. Qxc4 {[%clk 0:00:26.8]}
29... Rxc4 {[%clk 0:00:27.8]} 30. Nd6 {[%clk 0:00:26.9]} 30... Rc3 {[%clk
0:00:18.9]} 31. Ng5 {[%clk 0:00:14.7]} 31... Bd5 {[%clk 0:00:19.1]} 32. Ndxf7
{[%clk 0:00:08.4]} 32... Rxa3 {[%clk 0:00:16]} 33. h5 {[%clk 0:00:03.8]} 33...
Ra1 {[%clk 0:00:14.4]} 34. g4 {[%clk 0:00:03.5]} 34... gxh5 {[%clk 0:00:14.7]}
35. gxh5 {[%clk 0:00:03.2]} 35... Kg7 {[%clk 0:00:15.6]} 36. h6+ {[%clk
0:00:02.7]} 36... Kg6 {[%clk 0:00:15.5]} 37. Rxf8 {[%clk 0:00:02.8]} 37... Rb1
{[%clk 0:00:13.4]} 0-1

[Event "*** Titled Tuesday Blitz"]
[Site "Chess.com"]
[Date "2021.03.09"]
[Round "5"]
[White "Shahaliyev"]
[Black "tandaleo"]
[Result "1-0"]
[WhiteElo "2644"]
[BlackElo "2347"]
[TimeControl "180+1"]
[EndTime "10:58:58 PST"]
[Termination "Shahaliyev won by checkmate"]

1. e4 {[%clk 0:03:00.9]} 1... e5 {[%clk 0:02:59.4]} 2. Nf3 {[%clk 0:02:59.1]}
2... Nc6 {[%clk 0:02:59.8]} 3. Bb5 {[%clk 0:02:59.7]} 3... a6 {[%clk 0:02:59.8]}
4. Ba4 {[%clk 0:02:59.6]} 4... Nf6 {[%clk 0:02:58.9]} 5. Bxc6 {[%clk 0:03:00.1]}
5... dxc6 {[%clk 0:02:58.7]} 6. d3 {[%clk 0:03:01]} 6... Bd6 {[%clk 0:02:56.6]}
7. Nbd2 {[%clk 0:02:59.8]} 7... O-O {[%clk 0:02:56.3]} 8. Nf1 {[%clk 0:03:00.1]}
8... c5 {[%clk 0:02:50.7]} 9. Ne3 {[%clk 0:03:00.1]} 9... Nd7 {[%clk 0:02:45]}
10. Nc4 {[%clk 0:02:46]} 10... b5 {[%clk 0:02:35.1]} 11. Na5 {[%clk 0:02:38.5]}
11... Qe8 {[%clk 0:02:23.7]} 12. O-O {[%clk 0:02:28.8]} 12... f5 {[%clk
0:02:06.2]} 13. exf5 {[%clk 0:02:27.4]} 13... Nf6 {[%clk 0:02:03]} 14. Nh4
{[%clk 0:02:19.5]} 14... e4 {[%clk 0:01:32.4]} 15. g3 {[%clk 0:02:11.5]} 15...
exd3 {[%clk 0:01:25.9]} 16. Qxd3 {[%clk 0:02:01.2]} 16... c4 {[%clk 0:01:26.1]}
17. Qf3 {[%clk 0:02:01.2]} 17... Rb8 {[%clk 0:01:22.7]} 18. Bf4 {[%clk
0:01:55.6]} 18... Qe4 {[%clk 0:00:41]} 19. Bxd6 {[%clk 0:01:26.3]} 19... cxd6
{[%clk 0:00:38.5]} 20. Qxe4 {[%clk 0:01:26.6]} 20... Nxe4 {[%clk 0:00:39]} 21.
Rfe1 {[%clk 0:01:27.5]} 21... d5 {[%clk 0:00:38.4]} 22. Nc6 {[%clk 0:01:25.5]}
22... Rb7 {[%clk 0:00:34.9]} 23. Rad1 {[%clk 0:01:20.5]} 23... Nf6 {[%clk
0:00:20.6]} 24. Ne7+ {[%clk 0:01:17.3]} 24... Kh8 {[%clk 0:00:20.8]} 25. Nxd5
{[%clk 0:01:14.2]} 25... Nxd5 {[%clk 0:00:20.6]} 26. Rxd5 {[%clk 0:01:15.1]}
26... Rbf7 {[%clk 0:00:21.2]} 27. g4 {[%clk 0:01:13.9]} 27... Bb7 {[%clk
0:00:17]} 28. Rd2 {[%clk 0:01:08.7]} 28... Kg8 {[%clk 0:00:16.6]} 29. Re3 {[%clk
0:00:50.8]} 29... Rf6 {[%clk 0:00:09.7]} 30. f4 {[%clk 0:00:38.5]} 30... Rh6
{[%clk 0:00:07.5]} 31. Nf3 {[%clk 0:00:36.4]} 31... Bxf3 {[%clk 0:00:06.9]} 32.
Rxf3 {[%clk 0:00:36.7]} 32... Re8 {[%clk 0:00:07.7]} 33. Kg2 {[%clk 0:00:28.8]}
33... Re1 {[%clk 0:00:06.8]} 34. Rff2 {[%clk 0:00:25.4]} 34... Rc6 {[%clk
0:00:01.5]} 35. Rde2 {[%clk 0:00:24.3]} 35... Rd1 {[%clk 0:00:01.6]} 36. Rd2
{[%clk 0:00:24.3]} 36... Rb1 {[%clk 0:00:02]} 37. c3 {[%clk 0:00:24.1]} 37... a5
{[%clk 0:00:01.7]} 38. Rfe2 {[%clk 0:00:24.6]} 38... Kf7 {[%clk 0:00:01.5]} 39.
Rd7+ {[%clk 0:00:24.5]} 39... Kf8 {[%clk 0:00:01.5]} 40. Rb7 {[%clk 0:00:19.3]}
40... b4 {[%clk 0:00:01.7]} 41. Rd2 {[%clk 0:00:19.6]} 41... bxc3 {[%clk
0:00:02.1]} 42. Rd8# {[%clk 0:00:19.7]} 1-0